{"text_format":"1","workbook":"xlsx","n_sheets":1,"sheets":["Foglio1"],"not_rendered":{"charts":0,"images":0,"macros":1,"external_links":1,"defined_names":1553,"comments":0,"pivot_tables":0},"unopened":[],"bounds":{"document_bytes":16777216,"sheet_cells":100000,"rows_first":2000,"rows_last":500,"rows_between":2000,"halvings":0,"cell_chars":16384,"cell_head_chars":4096},"cells_cut":0,"cells_raw":0,"read":"whole","date_system":"1900"}

{"sheet":"Foglio1","index":0,"n_rows":39,"n_cols":22,"rows_kept":39,"cut":false,"hidden":false,"merged":[[1,10,1,12],[14,7,14,8],[0,0,0,3],[1,2,1,3],[1,6,1,8],[3,10,3,12],[5,10,5,12],[9,6,9,8],[8,6,8,8],[26,18,26,19],[18,15,18,16],[16,7,16,8],[20,15,20,16],[22,18,22,19],[23,18,23,19],[24,18,24,19],[25,18,25,19],[37,15,37,16],[38,15,38,16],[29,15,29,16],[30,15,30,16],[31,15,31,16],[32,15,32,16],[35,15,35,16],[36,15,36,16]]}
[]
["GIOCATORE","T/R","VOTO",null,null,null,"MODULO",null,null,null,"PORTIERE"]
[]
[null,null,null,null,null,null,3,4,3,null,1,null,null,null,null,null,"T","T","T","T"]
[null,null,null,null,null,null,null,null,null,null,null,null,null,null,null,null,"R1","R1","R1","R1"]
[null,null,null,null,null,null,{"$f":"IF(G4=G8,\"OK\",\"ERRORE\")","v":"ERRORE"},{"$f":"IF(H4=H8,\"OK\",\"ERRORE\")","v":"ERRORE"},{"$f":"IF(I4=I8,\"OK\",\"ERRORE\")","v":"ERRORE"},null,{"$f":"IF(K4=K8,\"OK\",\"ERRORE\")","v":"ERRORE"},{"$f":"IF(K4=0,\"ERRORE\",\"OK\")","v":"OK"},{"$f":"IF(L4=0,\"ERRORE\",\"OK\")","v":"ERRORE"},null,null,null,"R2","R2","R2","R2"]
[null,null,null,null,null,null,null,null,null,null,null,null,null,null,null,null,null,"R3","R3","R3"]
[null,null,null,null,null,null,{"$f":"COUNTIF(B6:B13,\"T\")","v":0},{"$f":"COUNTIF(B14:B21,\"T\")","v":0},{"$f":"COUNTIF(B22:B27,\"T\")","v":0},null,{"$f":"COUNTIF(B3:B5,\"T\")","v":0},null,null,null,null,null,null,"R4","R4","R4"]
[null,null,null,null,null,null,"controllo modulo",null,null,null,null,null,null,null,null,null,null,"R5","R5","R5"]
[null,null,null,null,null,null,{"$f":"IF(G4+H4+I4=10,\"ok\",\"ERRORE\")","v":"ok"}]
[null,null,null,null,null,null,null,null,null,null,null,null,null,null,null,null,"difensori","centrocampisti"]
[null,null,null,null,null,null,null,null,null,null,null,null,null,null,null,null,3,3,1]
[null,null,null,null,null,null,null,null,null,null,null,null,null,null,null,null,4,4,2]
[null,null,null,null,null,null,null,null,null,null,null,null,null,null,null,null,5,5,3]
[null,null,null,null,null,null,null,"CONTROLLO FORMAZIONE",null,null,null,null,null,null,null,null,6,6]
[null,null,null,null,null,null,null,null,null,"R1","R2","R3","R4","R5"]
[null,null,null,null,null,null,null,"portieri",null,{"$f":"IF(R36=\"OK\",\"OK\",\"ERRORE\")","v":"OK"},"OK"]
[null,null,null,null,null,null,null,"difensori",null,"OK","OK",{"$f":"IF(T37=\"OK\",\"OK\",\"ERRORE\")","v":"OK"},"OK","OK",null,null,null,"conta T"]
[null,null,null,null,null,null,null,"centrovcampisti",null,"OK","OK","OK","OK","OK",null,"portieri",null,{"$f":"COUNTIF(B3:B5,\"T\")","v":0}]
[null,null,null,null,null,null,null,"attaccanti",null,"OK","OK","OK","OK","OK"]
[null,null,null,null,null,null,null,null,null,null,null,null,null,null,null,"errore portiere T",null,{"$f":"IF(R19>1,\"ERRORE\",\"OK\")","v":"OK"},{"$f":"IF(R19=0,\"ERRORE\",\"OK\")","v":"ERRORE"}]
[]
[null,null,null,null,null,null,null,"numero riserve",null,{"$f":"IF(O29>7,\"ERRORE\",\"OK\")","v":"OK"}]
[null,null,null,null,null,null,null,null,null,null,null,null,null,null,{"$f":"COUNTIF(B3:B27,\"R1\")","v":0}]
[null,null,null,null,null,null,null,null,null,null,null,null,null,null,{"$f":"COUNTIF(B4:B28,\"R2\")","v":0}]
[null,null,null,null,null,null,null,null,null,null,null,null,null,null,{"$f":"COUNTIF(B5:B29,\"R3\")","v":0}]
[null,null,null,null,null,null,null,null,null,null,null,null,null,null,{"$f":"COUNTIF(B6:B30,\"R4\")","v":0}]
[null,null,null,null,null,null,null,null,null,null,null,null,null,null,{"$f":"COUNTIF(B7:B31,\"R5\")","v":0}]
[null,null,null,null,null,null,null,null,null,null,null,null,null,null,{"$f":"SUM(O24:O28)","v":0},null,null,"conta R1","conta R2","conta R3","conta R4","conta R5"]
[null,null,null,null,null,null,null,null,null,null,null,null,null,null,null,"portieri",null,{"$f":"COUNTIF($B3:$B5,\"R1\")","v":0},{"$f":"COUNTIF($B3:$B5,\"R2\")","v":0},{"$f":"COUNTIF(B3:B5,\"R3\")","v":0},{"$f":"COUNTIF($B3:$B5,\"R4\")","v":0},{"$f":"COUNTIF($B3:$B5,\"R5\")","v":0}]
[null,null,null,null,null,null,null,null,null,null,null,null,null,null,null,"difensori",null,{"$f":"COUNTIF($B6:$B13,\"R1\")","v":0},{"$f":"COUNTIF($B6:$B13,\"R2\")","v":0},{"$f":"COUNTIF($B6:$B13,\"R3\")","v":0},{"$f":"COUNTIF($B6:$B13,\"R4\")","v":0},{"$f":"COUNTIF($B6:$B13,\"R5\")","v":0}]
[null,null,null,null,null,null,null,null,null,null,null,null,null,null,null,"centrovcampisti",null,{"$f":"COUNTIF($B14:$B21,\"R1\")","v":0},{"$f":"COUNTIF($B14:$B21,\"R2\")","v":0},{"$f":"COUNTIF($B14:$B21,\"R3\")","v":0},{"$f":"COUNTIF($B14:$B21,\"R4\")","v":0},{"$f":"COUNTIF($B14:$B21,\"R5\")","v":0}]
[null,null,null,null,null,null,null,null,null,null,null,null,null,null,null,"attaccanti",null,{"$f":"COUNTIF($B22:$B27,\"R1\")","v":0},{"$f":"COUNTIF($B22:$B27,\"R2\")","v":0},{"$f":"COUNTIF($B22:$B27,\"R3\")","v":0},{"$f":"COUNTIF($B22:$B27,\"R4\")","v":0},{"$f":"COUNTIF($B22:$B27,\"R5\")","v":0}]
[]
[null,null,null,null,null,null,null,null,null,null,null,null,null,null,null,null,null,"R1","R2","R3","R4","R5"]
[null,null,null,null,null,null,null,null,null,null,null,null,null,null,null,"errori portieri",null,{"$f":"IF(R30>1,\"ERRORE\",\"OK\")","v":"OK"},"OK"]
[null,null,null,null,null,null,null,null,null,null,null,null,null,null,null,"errori difensori",null,"OK","OK",{"$f":"IF(T31>1,\"ERRORE\",\"OK\")","v":"OK"},"OK","OK"]
[null,null,null,null,null,null,null,null,null,null,null,null,null,null,null,"errori centrocampisti",null,"OK","OK","OK","OK","OK"]
[null,null,null,null,null,null,null,null,null,null,null,null,null,null,null,"errori attaccanti",null,"OK","OK","OK","OK","OK"]